fUSD/lending_fUSD_20260324
["ID","MTS","AMOUNT","RATE_DAILY","PERIOD"]
[408827893,1774327840837,-426.0,0.00013792,2]
[408827894,1774327840846,-154.21224702,0.0001381,2]
[408827895,1774327840855,-151.0,0.0001381,2]
[408827896,1774327840864,-293.15,0.00013812,2]
[408827897,1774327840873,-500.0,0.00013812,2]
[408827898,1774327840882,-500.0,0.00013812,2]
[408827899,1774327840891,-500.0,0.00013812,2]
[408827900,1774327840901,-500.0,0.00013812,2]
[408827901,1774327840910,-500.0,0.00013812,2]
[408827902,1774327840918,-999.15,0.00013812,2]
[408827903,1774327840928,-999.15,0.00013812,2]
[408827904,1774327840937,-497.0641286,0.00013813,2]
[408827905,1774327840946,-151.0,0.00013813,2]
[408827906,1774327840955,-151.0,0.00013813,2]
[408827907,1774327840965,-151.0,0.00013813,2]
[408827908,1774327840974,-263.634474,0.00013813,2]
[408827909,1774327840983,-151.0,0.00013813,2]
[408827910,1774327840992,-576.891092,0.00013813,2]
[408827911,1774327841001,-576.891092,0.00013813,2]
[408827912,1774327841010,-576.891092,0.00013813,2]
[408827913,1774327841019,-576.891092,0.00013813,2]
[408827914,1774327841028,-151.0,0.00013813,2]
[408827915,1774327841038,-151.0,0.00013813,2]
[408827916,1774327841048,-151.0,0.00013813,2]
[408827917,1774327841058,-151.0,0.00013813,2]
[408827918,1774327841068,-219.720685,0.00013813,2]
[408827919,1774327841076,-219.720685,0.00013813,2]
[408827920,1774327841086,-219.720685,0.00013813,2]
[408827921,1774327841095,-219.720685,0.00013813,2]
[408827922,1774327841104,-500.0,0.00013813,2]
[408827923,1774327841113,-1539.7730814,0.00013813,2]
[408827924,1774327841122,-426.0,0.00013843,2]
[408827925,1774327841131,-426.0,0.00013851,2]
[408827926,1774327841140,-426.0,0.00013872,2]
[408827927,1774327841149,-500.0,0.00013873,2]
[408827928,1774327841158,-500.0,0.00013873,2]
[408827929,1774327841167,-151.0,0.00013877,2]
[408827930,1774327841176,-151.0,0.00013877,2]
[408827931,1774327841185,-151.0,0.00013877,2]
[408827932,1774327841194,-151.0,0.00013877,2]
[408827933,1774327841203,-1189.265201,0.00013877,2]
[408827934,1774327841421,-1189.265201,0.00013877,2]
[408827935,1774327841430,-1189.265201,0.00013877,2]
[408827936,1774327841439,-1189.265201,0.00013877,2]
[408827937,1774327841448,-426.0,0.000139,2]
[408827938,1774327841457,-164.79,0.000139,2]
[408827939,1774327841467,-151.0,0.0001391,2]
[408827940,1774327841476,-426.0,0.00013911,2]
[408827941,1774327841485,-3652.27309745,0.00013912,2]
[408827942,1774327841495,-500.0,0.00013912,2]
[408827943,1774327841504,-500.0,0.00013912,2]
[408827944,1774327841513,-500.0,0.00013912,2]
[408827945,1774327841522,-999.15,0.00013912,2]
[408827946,1774327841531,-426.0,0.00013921,2]
[408827947,1774327841540,-426.0,0.00013926,2]
[408827948,1774327841549,-426.0,0.00013952,2]
[408827949,1774327841559,-151.0,0.00013956,2]
[408827950,1774327841568,-151.0,0.00013956,2]
[408827951,1774327841577,-151.0,0.00013956,2]
[408827952,1774327841586,-151.0,0.00013956,2]
[408827953,1774327841595,-151.0,0.00013956,2]
[408827954,1774327841606,-576.891092,0.00013956,2]
[408827955,1774327841615,-576.891092,0.00013956,2]
[408827956,1774327841625,-576.891092,0.00013956,2]
[408827957,1774327841635,-576.891092,0.00013956,2]
[408827958,1774327841644,-153.227041,0.00013956,2]
[408827959,1774327841653,-151.0,0.00013956,2]
[408827960,1774327841664,-151.0,0.00013956,2]
[408827961,1774327841673,-151.0,0.00013956,2]
[408827962,1774327841682,-3572.98247602,0.00013956,2]
[408827963,1774327841692,-219.720685,0.00013956,2]
[408827964,1774327841701,-219.720685,0.00013956,2]
[408827965,1774327841712,-219.720685,0.00013956,2]
[408827966,1774327841721,-219.720685,0.00013956,2]
[408827967,1774327841730,-153.804643,0.0001397,2]
[408827968,1774327841740,-151.0,0.0001397,2]
[408827969,1774327841749,-966.44,0.0001397,2]
[408827970,1774327841759,-426.0,0.00013997,2]
[408827971,1774327841768,-534.0,0.00014,2]
[408827972,1774327841778,-2000.0,0.00014,2]
[408827973,1774327841787,-500.0,0.00014,2]
[408827974,1774327841796,-249.10521,0.00014013,7]
[408827975,1774327841807,-183.83074,0.0001407,2]
[408827976,1774327841816,-183.83075,0.0001407,2]
[408827977,1774327841826,-183.83075,0.0001407,2]
[408827978,1774327841835,-293.15,0.00014086,2]
[408827979,1774327841846,-153.695628,0.00014093,2]
[408827980,1774327841857,-203.813353,0.00014102,7]
[408827981,1774327841866,-196.804939,0.00014102,7]
[408827982,1774327841875,-523.20058514,0.00014112,2]
[408827983,1774327841884,-1322.03331046,0.00014113,2]
[408827984,1774327841895,-200.0,0.00014113,2]
[408827985,1774327841905,-151.0,0.00014113,2]
[408827986,1774327841915,-151.0,0.00014113,2]
[408827987,1774327841926,-151.0,0.00014113,2]
[408827988,1774327841936,-151.0,0.00014113,2]
[408827989,1774327841949,-433.0,0.00014139,2]
[408827990,1774327841959,-168.0,0.00014158,2]
[408827991,1774327841969,-168.0,0.00014158,2]
[408827992,1774327841979,-3652.27309745,0.0001416,2]
[408827993,1774327841989,-426.0,0.00014163,2]
[408827994,1774327842001,-151.0,0.00014173,2]
[408827995,1774327842010,-169.636306,0.00014173,2]
[408827996,1774327842020,-151.0,0.00014173,2]
[408827997,1774327842030,-151.0,0.00014173,2]
[408827998,1774327842040,-576.891092,0.00014173,2]
[408827999,1774327842049,-576.891092,0.00014173,2]
[408828000,1774327842059,-576.891092,0.00014173,2]
[408828001,1774327842070,-576.891092,0.00014173,2]
[408828002,1774327842079,-151.0,0.00014173,2]
[408828003,1774327842089,-151.0,0.00014173,2]
[408828004,1774327842099,-151.0,0.00014173,2]
[408828005,1774327842108,-153.137935,0.00014173,2]
[408828006,1774327842118,-1189.265201,0.00014173,2]
[408828007,1774327842128,-1189.265201,0.00014173,2]
[408828008,1774327842137,-1189.265201,0.00014173,2]
[408828009,1774327842147,-1189.265201,0.00014173,2]
[408828010,1774327842156,-151.0,0.00014173,2]
[408828011,1774327842166,-1357.3088408,0.00014199,2]
[408828012,1774327842187,-505.0,0.00014199,2]
[408828013,1774327842230,-258.87161287,0.00014199,2]
[408828014,1774327842265,-1451.80202235,0.00014199,2]
[408828015,1774327842274,-623.69797765,0.000142,2]
[408828016,1774327842286,-600.52297931,0.000142,2]
[408828017,1774327842300,-2313.77904304,0.000142,2]
[408828018,1774327842309,-494.46046681,0.00014213,2]
[408828019,1774327842319,-5310.71528629,0.00014213,2]
[408828020,1774327842330,-426.0,0.00014249,2]
[408828021,1774327842339,-350.0,0.00014253,2]
[408828022,1774327842348,-200.0,0.00014254,2]
[408828023,1774327842357,-426.0,0.00014257,2]
[408828024,1774327842369,-151.600005,0.00014262,2]
[408828025,1774327842378,-3668.0,0.00014265,2]
[408828026,1774327842388,-168.0,0.00014287,2]
[408828027,1774327842398,-352.82701423,0.00014296,2]
[408828028,1774327842407,-151.0,0.000143,2]
[408828029,1774327842416,-151.0,0.000143,2]
[408828030,1774327842425,-151.0,0.000143,2]
[408828031,1774327842435,-219.720685,0.000143,2]
[408828032,1774327842444,-219.720685,0.000143,2]
[408828033,1774327842454,-70.02313814,0.000143,2]
[408828034,1774327842465,-149.69754686,0.000143,2]
[408828035,1774327842475,-219.720685,0.000143,2]
[408828036,1774327842484,-1522.0,0.00014313,2]
[408828037,1774327842493,-1281.30523641,0.00014313,2]
[408828038,1774327842502,-154.35291578,0.00014321,2]
[408828039,1774327842511,-293.15,0.0001436,2]
[408828040,1774327842521,-151.0,0.00014382,2]
[408828041,1774327842530,-151.0,0.00014382,2]
[408828042,1774327842539,-151.0,0.00014382,2]
[408828043,1774327842550,-224.131655,0.00014382,2]
[408828044,1774327842559,-788.52,0.00014384,2]
[408828045,1774327842568,-6775.98340952,0.0001439,2]
[408828058,1774327844844,-3615.16954842,0.0001439,2]
[408828059,1774327844855,-151.557594,0.0001439,2]
[408828060,1774327844865,-151.0,0.0001439,2]
[408828061,1774327844874,-329.64031121,0.0001439,2]
[408828062,1774327844883,-329.64031121,0.0001439,2]
[408828063,1774327844894,-151.0,0.0001439,2]
[408828064,1774327844903,-1649.28497908,0.000144,2]
[408828065,1774327844916,-1347.71502092,0.000144,2]
[408828066,1774327844927,-2029.0,0.000144,2]
[408828067,1774327844937,-3652.27309745,0.00014409,2]
[408828068,1774327844946,-2177.0,0.00014416,5]
[408828069,1774327844956,-6852.5277646,0.00014416,2]
[408828070,1774327844965,-906.22997108,0.00014421,2]
[408828071,1774327844975,-1000.0,0.00014421,2]
[408828072,1774327844984,-151.0,0.00014421,2]
[408828073,1774327844994,-151.0,0.00014421,2]
[408828074,1774327845003,-151.0,0.00014421,2]
[408828075,1774327845013,-484.01953547,0.00014421,2]
[408828076,1774327845024,-705.24566553,0.00014421,2]
[408828077,1774327845034,-472.98017775,0.00014421,2]
[408828078,1774327845045,-716.28502325,0.00014421,2]
[408828079,1774327845054,-1189.265201,0.00014421,2]
[408828080,1774327845064,-1189.265201,0.00014421,2]
[408828081,1774327845073,-192.2,0.00014435,2]
[408828082,1774327845083,-151.0,0.00014442,2]
[408828083,1774327845093,-151.0,0.00014442,2]
[408828084,1774327845104,-151.0,0.00014442,2]
[408828085,1774327845113,-576.891092,0.00014442,2]
[408828086,1774327845123,-576.891092,0.00014442,2]
[408828087,1774327845133,-207.13838902,0.00014442,2]
[408828088,1774327845187,-369.75270298,0.00014442,2]
[408828089,1774327845196,-576.891092,0.00014442,2]
[408828090,1774327845206,-3572.98247602,0.00014442,2]
[408828091,1774327845215,-350.0,0.00014583,2]
[408828092,1774327845225,-293.15,0.00014634,2]
[408828093,1774327845235,-166.67,0.00014641,2]
[408828094,1774327845244,-151.0,0.00014657,2]
[408828095,1774327845253,-151.0,0.00014657,2]
[408828096,1774327845262,-79.46203166,0.00014657,2]
[408828097,1774327845290,-71.53796834,0.00014657,2]
[408828098,1774327845301,-62.96084309,0.00014657,2]
[408828099,1774327845314,-3589.31225436,0.00014657,2]
[408828100,1774327845323,-441.55338344,0.00014677,2]
[408828101,1774327845334,-500.0,0.00014677,2]
[408828102,1774327845346,-999.15,0.00014677,2]
[408828103,1774327845358,-1769.87,0.00014678,2]
[408828104,1774327845369,-849.39,0.00014678,2]
[408828105,1774327845380,-4791.28085201,0.00014678,2]
[408828106,1774327845420,-1958.7483712,0.00014678,2]
[408828107,1774327845432,-35.45077679,0.00014678,2]
[408828108,1774327845443,-151.0,0.00014685,2]
[408828109,1774327845453,-151.0,0.00014685,2]
[408828110,1774327845463,-238.501235,0.00014685,2]
[408828111,1774327845476,-408.6879876,0.00014685,2]
[408828112,1774327845488,-1036.94153083,0.00014685,2]
[408828113,1774327845500,-2127.35295759,0.00014685,2]
[408828114,1774327845511,-219.720685,0.00014685,2]
[408828115,1774327845521,-219.720685,0.00014685,2]
[408828116,1774327845530,-219.720685,0.00014685,2]
[408828117,1774327845541,-219.720685,0.00014685,2]
[408828118,1774327845551,-259.0804,0.000147,2]
[408828119,1774327845562,-350.0,0.00014734,2]
[408828120,1774327845572,-443.2,0.00014795,2]
[408828121,1774327845581,-3508.46,0.00014861,2]
[408828122,1774327845591,-2017.0,0.00014899,5]
[408828123,1774327845601,-167.24,0.00014901,2]
[408828124,1774327845611,-3652.27309745,0.00014906,2]
[408828125,1774327845621,-293.16,0.00014908,2]
[408828126,1774327845632,-169.733934,0.00014915,2]
[408828127,1774327845642,-151.0,0.00014928,2]
[408828128,1774327845652,-151.0,0.00014928,2]
[408828129,1774327845666,-576.891092,0.00014928,2]
[408828130,1774327845676,-576.891092,0.00014928,2]
[408828131,1774327845686,-576.891092,0.00014928,2]
[408828132,1774327845698,-576.891083,0.00014928,2]
[408828133,1774327845708,-533.80555568,0.00014928,2]
[408828134,1774327845720,-3039.17692034,0.00014928,2]
[408828135,1774327845731,-151.0,0.00014928,2]
[408828136,1774327845741,-151.0,0.00014928,2]
[408828137,1774327845751,-151.0,0.00014928,2]
[408828138,1774327845762,-1189.265201,0.00014928,2]
[408828139,1774327845772,-1189.265201,0.00014928,2]
[408828140,1774327845783,-1189.265201,0.00014928,2]
[408828141,1774327845794,-535.22478084,0.00014928,2]
[408828142,1774327846646,-151.0,0.00014677,2]
[408828143,1774327846656,-130.32,0.00014915,2]
[408828144,1774327846667,-20.68,0.00014915,2]
[408828145,1774327846676,-641.19859641,0.00014928,2]
[408828146,1774327846688,-12.84182675,0.00014928,2]
[408828148,1774327846697,-1001.55506266,0.00014968,2]
[408828149,1774327846706,-591.38169851,0.00014999,2]
[408828150,1774327846718,-1940.0,0.00015,5]
[408828151,1774327846728,-788.52,0.00015068,2]
[408828152,1774327846737,-225.32,0.00015068,2]
[408828153,1774327846747,-2218.0,0.00015083,5]
[408828154,1774327846756,-500.0,0.00015091,2]
[408828155,1774327846765,-500.0,0.00015092,2]
[408828156,1774327846774,-160.0,0.000151,2]
[408828157,1774327846783,-161.44,0.000151,2]
[408828158,1774327846793,-501.65579468,0.00015136,2]
[408828159,1774327846803,-3652.27309745,0.00015154,2]
[408828160,1774327846812,-192.2,0.00015157,2]
[408828161,1774327846821,-3572.98247602,0.00015171,2]
[408828162,1774327846830,-151.0,0.00015171,2]
[408828163,1774327846839,-151.0,0.00015171,2]
[408828164,1774327846849,-151.0,0.00015171,2]
[408828165,1774327846858,-151.0,0.00015221,2]
[408828166,1774327846867,-151.0,0.00015221,2]
[408828167,1774327846876,-219.720685,0.00015221,2]
[408828168,1774327846884,-219.720685,0.00015221,2]
[408828169,1774327846894,-219.720685,0.00015221,2]
[408828170,1774327846905,-219.720677,0.00015221,2]
[408828171,1774327846915,-2288.516,0.00015221,2]
[408828172,1774327846926,-625.711,0.00015221,2]
[408828173,1774327846935,-1410.94,0.00015221,2]
[408828174,1774327846944,-1262.0,0.00015221,2]
[408828175,1774327846953,-150.336,0.00015221,2]
[408828176,1774327846962,-931.31,0.00015221,2]
[408828177,1774327846972,-1215.0,0.00015221,2]
[408828178,1774327846981,-417.534,0.00015221,2]
[408828179,1774327846990,-2467.0,0.00015221,2]
[408828180,1774327846999,-6009.0,0.00015221,2]
[408828181,1774327847008,-292.06508576,0.00015242,2]
[408828182,1774327847017,-500.0,0.00015313,2]
[408828183,1774327847026,-500.0,0.00015313,2]
[408828184,1774327847035,-500.0,0.00015313,2]
[408828185,1774327847044,-500.0,0.00015321,2]
[408828186,1774327847054,-1587.652987,0.00015322,7]
[408828187,1774327847063,-302.0,0.00015322,2]
[408828188,1774327847072,-695.0,0.00015356,2]
[408828189,1774327847081,-2000.0,0.0001538,2]
[408828190,1774327847090,-3600.0,0.000154,5]
[408828191,1774327847100,-3652.27309745,0.00015403,2]
[408828192,1774327847109,-3572.98247602,0.00015414,2]
[408828193,1774327847118,-889.592515,0.0001543,7]
[408828194,1774327847127,-736.0,0.00015434,2]
[408828195,1774327847136,-350.0,0.00015449,2]
[408828196,1774327847146,-234.56,0.00015471,2]
[408828197,1774327847155,-2867.54148838,0.000155,3]
[408828198,1774327847164,-7300.0,0.000155,5]
[408828199,1774327847174,-4000.0,0.00015507,2]
[408828200,1774327847183,-966.44,0.00015522,2]
[408828201,1774327847192,-10912.8755182,0.0001553,2]
[408828202,1774327847201,-6255.99128248,0.000156,5]
[408828203,1774327847224,-884.54971912,0.000156,5]
[408828204,1774327847235,-726.65367492,0.000156,5]
[408828205,1774327847247,-3132.80532348,0.000156,5]
[408828206,1774327847256,-1000.0,0.00015639,2]
[408828207,1774327847266,-749.62764045,0.0001564,2]
[408828208,1774327847277,-3652.27309745,0.00015651,2]
[408828209,1774327847287,-3572.98247602,0.00015657,2]
[408828210,1774327847301,-376.0954626,0.00015657,2]
[408828211,1774327847317,-623.9045374,0.00015657,2]
[408828212,1774327847327,-2268.65304162,0.0001568,2]
[408828213,1774327847336,-1697.471,0.0001568,2]
[408828214,1774327847346,-170.326,0.0001568,2]
[408828215,1774327847356,-1000.0,0.00015691,2]
[408828216,1774327847365,-4178.0649999,0.000157,5]
[408828217,1774327963483,-151.0,0.00013775,2]
[408828218,1774327963511,-151.0,0.00014102,2]
[408828219,1774328434236,-386.57,0.00012545,2]
[408828220,1774328434263,-500.0,0.00012545,2]
[408828221,1774328434291,-500.0,0.00012545,2]
[408828222,1774328434320,-500.0,0.00012545,2]
[408828223,1774328434347,-238.60721477,0.00012545,2]
[408828224,1774328434376,-300.0,0.00013798,2]
[408828225,1774328437041,-150.0,0.00013798,2]
[408828226,1774328445067,370.8332,0.00013712,2]
[408828227,1774328816129,-551.89417474,0.00012545,2]
[408828232,1774328907550,-1636.33898252,0.0001,2]
[408828233,1774328907585,-250.0,0.00011,2]
[408828234,1774328907621,-500.0,0.00012545,2]
[408828235,1774328910408,-948.10582526,0.00012545,2]
[408828236,1774328910436,-164.74,0.00012545,2]
[408828240,1774329032153,-319.0,0.00013453,2]
[408828241,1774329032162,-59.35139607,0.0001359,2]
[408828242,1774329032174,-105.38860393,0.0001359,2]
[408828243,1774329032183,-387.51,0.00013699,2]
[408828244,1774329032192,-300.0,0.00013798,2]
[408828245,1774329032201,-150.0,0.00013798,2]
[408828246,1774329032211,-1200.0,0.00013798,2]
[408828247,1774329032222,-300.0,0.00013798,2]
[408828248,1774329032233,-376.43417474,0.00013799,2]
[408828249,1774329032243,-369.04573,0.000138,2]
[408828250,1774329032253,-832.62,0.00013812,2]
[408828251,1774329032263,-150.0,0.00014,2]
[408828252,1774329032273,-535.0,0.00014,2]
[408828253,1774329032285,-832.62,0.00014092,2]
[408828254,1774329032294,-173.0,0.00014102,3]
[408828255,1774329032305,-172.0,0.00014102,3]
[408828256,1774329032316,-386.57,0.00014113,2]
[408828257,1774329032326,-5137.776518,0.00014284,2]
[408828258,1774329032335,-500.0,0.00014356,2]
[408828259,1774329032345,-500.0,0.00014356,2]
[408828260,1774329032355,-387.51,0.00014384,2]
[408828261,1774329032364,-164.74,0.00014635,2]
[408828262,1774329032374,-2000.0,0.00014714,2]
[408828264,1774329032385,-1697.471,0.00014723,2]
[408828265,1774329032394,-200.0,0.00014757,2]
[408828266,1774329032404,-2500.0,0.00014798,2]
[408828267,1774329032414,-150.0,0.00014798,2]
[408828268,1774329032424,-204.47853027,0.00014798,2]
[408828269,1774329032434,-300.0,0.00014798,2]
[408828270,1774329032443,-300.0,0.00014798,2]
[408828271,1774329032453,-443.46063917,0.00014798,2]
[408828273,1774329032463,-500.0,0.00014798,2]
[408828274,1774329032472,-300.0,0.00014798,2]
[408828277,1774329032482,-300.0,0.00014798,2]
[408828279,1774329032492,-300.0,0.00014798,2]
[408828280,1774329032501,-289.37029441,0.00014798,2]
[408828281,1774329032511,-300.0,0.00014873,2]
[408828282,1774329032519,-300.0,0.00014873,2]
[408828283,1774329032529,-500.0,0.00014873,2]
[408828284,1774329032539,-500.0,0.00014873,2]
[408828285,1774329032548,-600.0,0.00014873,2]
[408828286,1774329032557,-600.0,0.00014873,2]
[408828287,1774329032566,-600.0,0.00014873,2]
[408828288,1774329032576,-600.0,0.00014873,2]
[408828289,1774329032585,-600.0,0.00014873,2]
[408828290,1774329032594,-2500.0,0.00014873,2]
[408828291,1774329032603,-2500.0,0.00014873,2]
[408828292,1774329032612,-2500.0,0.00014873,2]
[408828293,1774329032624,-2536.5451074,0.00014873,2]
[408828294,1774329032633,-992.42751169,0.00014897,2]
[408828295,1774329032642,-170.326,0.00014899,2]
[408828296,1774329032651,-255.0,0.00014916,2]
[408828297,1774329032661,-615.33,0.00014997,2]
[408828298,1774329032670,-387.51,0.00015068,2]
[408828299,1774329032681,-1680.0,0.00015178,2]
[408828300,1774329032691,-197.1167,0.000152,2]
[408828301,1774329032700,-621.0,0.00015209,2]
[408828302,1774329032709,-1345.0,0.00015209,2]
[408828303,1774329032718,-150.0,0.00015209,2]
[408828304,1774329032727,-1262.0,0.00015209,2]
[408828305,1774329032736,-924.0,0.00015209,2]
[408828306,1774329032745,-1215.0,0.00015209,2]
[408828307,1774329032755,-4344.597,0.00015209,2]
[408828308,1774329032764,-3773.623,0.00015209,2]
[408828309,1774329032774,-200.0,0.00015221,2]
[408828310,1774329032784,-2500.0,0.000153,5]
[408828311,1774329032793,-16117.8686,0.0001537,2]
[408828312,1774329032802,-5100.0,0.000154,5]
[408828313,1774329032811,-1047.003,0.00015409,2]
[408828314,1774329032820,-3514.0,0.00015409,2]
[408828315,1774329032829,-2434.9916621,0.0001541,2]
[408828316,1774329032838,-505.83934811,0.00015411,2]
[408828317,1774329032847,-357.29824762,0.00015429,2]
[408828318,1774329032857,-505.83934808,0.00015465,2]
[408828319,1774329032866,-24005.10356352,0.0001547,2]
[408828320,1774329032878,-716.51117773,0.0001547,2]
[408828321,1774329032901,-40836.13726052,0.0001547,2]
[408828322,1774329032912,-2907.53305782,0.0001547,2]
[408828323,1774329032923,-5000.42320899,0.0001547,2]
[408828324,1774329032934,-2518.78506904,0.0001547,2]
[408828325,1774329032953,-1073.36806678,0.0001547,2]
[408828326,1774329032962,-357.2982476,0.00015481,2]
[408828327,1774329032971,-950.52321683,0.000155,5]
[408828328,1774329032982,-5601.10756157,0.000155,5]
[408828330,1774329038244,-1148.3692216,0.000155,5]
[408828331,1774329038254,-225.32,0.00015511,2]
[408828332,1774329038263,-167.18072665,0.00015515,2]
[408828333,1774329038297,-832.81927335,0.00015515,2]
[408828334,1774329038306,-505.83934808,0.0001552,2]
[408828335,1774329038316,-155.507,0.0001552,2]
[408828336,1774329038325,-500.0,0.00015521,2]
[408828337,1774329038334,-186.268198,0.00015522,2]
[408828338,1774329038344,-1414.81639977,0.00015522,2]
[408828339,1774329038355,-1433.24415623,0.00015522,2]
[408828340,1774329038366,-696.93124006,0.00015522,2]
[408828341,1774329038377,-1453.11674224,0.00015522,2]
[408828342,1774329038388,-4378.99380511,0.00015522,2]
[408828343,1774329038404,-500.0,0.00015522,2]
[408828344,1774329038523,-788.45865194,0.00015522,2]
[408828368,1774329041303,-325.47403664,0.00015209,2]
[408828369,1774329041315,-354.615,0.00015209,2]
[408828370,1774329041327,-430.35,0.00015209,2]
[408828371,1774329041362,-1209.577,0.00015209,2]
[408828372,1774329041374,-146.98396336,0.00015209,2]
[408828373,1774329041383,-150.15977594,0.000154,2]
[408828374,1774329041393,-578.35626071,0.00015522,2]
[408828375,1774329041408,-1550.58262181,0.00015522,2]
[408828376,1774329041419,-369.885,0.00015522,2]
[408828383,1774329043428,-2497.01076234,0.00015522,2]
[408828384,1774329043446,-1501.93786535,0.00015522,2]
[408828396,1774329046275,-1385.57697788,0.00015522,2]
[408828397,1774329046291,-973.00923496,0.00015522,2]
[408828398,1774329046338,-30798.53529636,0.00015522,2]
[408828399,1774329046362,-6853.70704042,0.00015522,2]
[408828557,1774329221338,173.0,7.051e-05,2]
[408828558,1774329221552,156.0,7.051e-05,2]
[408828559,1774329222094,156.0,7.051e-05,2]
[408828560,1774329222342,156.0,7.051e-05,2]
[408828561,1774329222865,156.0,7.051e-05,2]
[408828562,1774329223079,156.0,7.051e-05,2]
[408828563,1774329223299,156.0,7.051e-05,2]
[408828564,1774329223534,156.0,7.051e-05,2]
[408828565,1774329224066,156.0,7.051e-05,2]
[408828566,1774329225513,156.0,7.051e-05,2]
[408828567,1774329225581,156.0,7.051e-05,2]
[408828568,1774329225656,156.0,7.051e-05,2]
[408828569,1774329225736,156.0,7.051e-05,2]
[408828570,1774329225891,156.0,7.051e-05,2]
[408828571,1774329225967,156.0,7.051e-05,2]
[408828572,1774329226025,156.0,7.051e-05,2]
[408828573,1774329226082,156.0,7.051e-05,2]
[408828574,1774329226140,156.0,7.051e-05,2]
[408828575,1774329226301,156.0,7.051e-05,2]
[408828576,1774329226439,156.0,7.051e-05,2]
[408828577,1774329226649,156.0,7.051e-05,2]
[408828578,1774329227787,178.0,7.051e-05,2]
[408828579,1774329228012,153.0,7.051e-05,2]
[408828580,1774329228229,153.0,7.051e-05,2]
[408828581,1774329228455,153.0,7.051e-05,2]
[408828582,1774329228681,153.0,7.051e-05,2]
[408828583,1774329228882,153.0,7.051e-05,2]
[408828584,1774329229410,153.0,7.051e-05,2]
[408828585,1774329229634,153.0,7.051e-05,2]
[408828586,1774329229855,153.0,7.051e-05,2]
[408828587,1774329230083,153.0,7.051e-05,2]
[408828588,1774329230312,153.0,7.051e-05,2]
[408828589,1774329230532,153.0,7.051e-05,2]
[408828590,1774329230786,153.0,7.051e-05,2]
[408828591,1774329230963,153.0,7.051e-05,2]
[408828592,1774329231240,153.0,7.051e-05,2]
[408828593,1774329231409,153.0,7.051e-05,2]
[408828594,1774329231891,153.0,7.051e-05,2]
[408828595,1774329232013,153.0,7.051e-05,2]
[408828596,1774329232082,153.0,7.051e-05,2]
[408828597,1774329232299,153.0,7.051e-05,2]
[408828598,1774329232505,153.0,7.051e-05,2]
[408828599,1774329232715,153.0,7.051e-05,2]
[408828600,1774329232945,153.0,7.051e-05,2]
[408828601,1774329233141,153.0,7.051e-05,2]
[408828602,1774329233366,153.0,7.051e-05,2]
[408828603,1774329233581,153.0,7.051e-05,2]
[408828604,1774329233788,153.0,7.051e-05,2]
[408828605,1774329233997,153.0,7.051e-05,2]
[408828606,1774329234208,153.0,7.051e-05,2]
[408828607,1774329234424,153.0,7.051e-05,2]
[408828608,1774329234633,153.0,7.051e-05,2]
[408828609,1774329234839,153.0,7.051e-05,2]
[408828610,1774329235057,153.0,7.051e-05,2]
[408828611,1774329235287,153.0,7.051e-05,2]
[408828612,1774329235477,153.0,7.051e-05,2]
[408828613,1774329688876,-168.36,0.00011457,2]
[408828614,1774329688908,-980.97,0.00011934,2]
[408828615,1774329688942,-1200.0,0.00012602,2]